bitfinex/quotes_SOLUSD_20250831
["timestamp","ask_amount","ask_price","bid_price","bid_amount"]
[1756611612187,3.44834696,205.67,205.66,14.27559401]
[1756611612910,3.44834696,205.67,205.63,0.68]
[1756611613116,3.44834696,205.67,205.62,4.86331916]
[1756611613117,3.44834696,205.65,205.64,14.27559401]
[1756611613803,4.86198618,205.68,205.64,14.27559401]
[1756611614113,3.44834696,205.66,205.64,0.68]
[1756611614309,3.44834696,205.65,205.64,14.27559401]
[1756611617195,4.86198618,205.68,205.64,14.27559401]
[1756611617390,3.44834696,205.65,205.64,14.27559401]
[1756611618315,4.86198618,205.68,205.64,14.27559401]
[1756611618490,3.44834696,205.65,205.64,14.27559401]
[1756611619623,4.86198618,205.68,205.64,14.27559401]
[1756611619806,3.44834696,205.66,205.64,13.59559401]
[1756611620317,3.44834696,205.66,205.64,14.27559401]
[1756611620510,3.44834696,205.66,205.65,0.68]
[1756611620710,3.44834696,205.66,205.65,14.27559401]
[1756611621017,3.44834696,205.68,205.66,13.59559401]
[1756611621239,3.44834696,205.68,205.67,0.68]
[1756611621691,26.0,205.69,205.67,0.68]
[1756611621891,3.44834696,205.68,205.67,0.68]
[1756611623207,3.89834696,205.68,205.57,38.16104302]
[1756611623519,3.50834696,205.7,205.63,13.59559401]
[1756611623520,3.44834696,205.64,205.63,13.59559401]
[1756611623715,3.44834696,205.64,205.63,0.68]
[1756611624309,3.44834696,205.64,205.62,0.68]
[1756611624515,3.44834696,205.63,205.6,13.59559401]
[1756611624820,3.44834696,205.64,205.6,13.59559401]
[1756611625003,3.44834696,205.64,205.61,0.68]
[1756611625198,3.44834696,205.64,205.6,13.59559401]
[1756611625406,3.44834696,205.64,205.63,13.59559401]
[1756611625614,3.44834696,205.64,205.63,0.68]
[1756611626119,3.44834696,205.65,205.63,0.68]
[1756611626298,3.44834696,205.65,205.64,0.68]
[1756611627918,3.44834696,205.66,205.64,0.68]
[1756611628099,4.86205231,205.68,205.65,0.68]
[1756611628299,3.44834696,205.66,205.65,0.68]
[1756611628624,3.44834696,205.66,205.61,4.86344157]
[1756611628819,4.86205231,205.68,205.63,0.68]
[1756611629121,5.31205231,205.68,205.63,0.68]
[1756611629420,4.86205231,205.68,205.64,0.68]
[1756611630124,5.31205231,205.68,205.64,0.68]
[1756611630501,3.44834696,205.65,205.64,0.68]
[1756611631929,26.0,205.69,205.64,14.27559401]
[1756611631930,3.44834696,205.66,205.64,14.27559401]
[1756611632109,3.44834696,205.65,205.64,13.59559401]
[1756611632708,3.44834696,205.65,205.64,14.27559401]
[1756611634229,3.44834696,205.65,205.64,13.59559401]
[1756611634907,4.86192143,205.68,205.6,14.27559401]
[1756611635109,3.44834696,205.63,205.6,14.27559401]
[1756611635434,3.44834696,205.63,205.62,13.59559401]
[1756611636333,3.44834696,205.63,205.59,38.53]
[1756611636513,3.44834696,205.6,205.59,14.30559401]
[1756611637023,4.86328839,205.63,205.59,14.30559401]
[1756611637330,4.86328839,205.63,205.6,13.59559401]
[1756611638333,3.44834696,205.61,205.59,0.71]
[1756611638537,3.44834696,205.6,205.59,0.71]
[1756611639128,4.86328839,205.63,205.59,0.03]
[1756611639328,3.44834696,205.6,205.59,0.03]
[1756611639538,26.06,205.65,205.6,0.68]
[1756611639831,3.44834696,205.62,205.6,0.68]
[1756611640204,3.44834696,205.64,205.6,0.68]
[1756611640430,3.44834696,205.64,205.6,5.54376998]
[1756611640732,3.50834696,205.65,205.62,13.59559401]
[1756611640919,0.06,205.65,205.64,13.59559401]
[1756611641114,0.06,205.65,205.64,14.27559401]
[1756611643033,0.06,205.65,205.64,19.13846115]
[1756611647839,0.06,205.65,205.64,14.27559401]
[1756611648138,0.06,205.65,205.64,0.68]
[1756611649645,0.06,205.65,205.64,5.54286714]
[1756611653143,0.06,205.65,205.64,19.13846115]
[1756611653731,0.06,205.65,205.64,14.27559401]
[1756611654328,0.06,205.65,205.64,14.30559401]
[1756611654927,0.06,205.65,205.64,19.16846115]
[1756611655746,0.06,205.65,205.64,13.62559401]
[1756611660645,0.06,205.65,205.64,14.30559401]
[1756611660950,0.06,205.65,205.64,13.62559401]
[1756611661658,0.06,205.65,205.64,14.30559401]
[1756611663054,0.06,205.65,205.64,19.16846115]
[1756611680240,0.06,205.65,205.64,56.88846115]
[1756611680952,0.06,205.65,205.64,59.0984041]
[1756611681442,0.06,205.65,205.64,56.88846115]
[1756611681642,0.06,205.65,205.64,59.0984041]
[1756611682057,0.06,205.65,205.64,56.88846115]
[1756611682254,0.06,205.65,205.64,59.0984041]
[1756611684764,0.06,205.65,205.64,56.94846115]
[1756611685767,0.06,205.65,205.64,51.40559401]
[1756611689666,2.71994295,205.65,205.64,0.03]
[1756611690960,0.06,205.65,205.64,0.03]
[1756611691156,0.06,205.65,205.64,14.30559401]
[1756611691358,0.06,205.65,205.64,13.62559401]
[1756611691549,2.26994295,205.65,205.64,13.62559401]
[1756611691768,2.26994295,205.65,205.64,0.03]
[1756611694573,2.71994295,205.65,205.64,0.03]
[1756611695479,7.58257363,205.65,205.64,0.03]
[1756611697377,2.26994295,205.65,205.64,0.03]
[1756611698172,0.06,205.65,205.64,0.71]
[1756611698354,2.26994295,205.65,205.64,13.62559401]
[1756611698554,2.26994295,205.65,205.64,0.71]
[1756611698967,0.06,205.65,205.64,14.30559401]
[1756611699370,2.26994295,205.65,205.64,13.62559401]
[1756611699783,2.26994295,205.65,205.64,14.30559401]
[1756611701494,0.06,205.65,205.64,21.3784041]
[1756611703266,0.06,205.65,205.64,23.3270101]
[1756611705262,0.06,205.65,205.64,24.56852124]
[1756611706368,0.06,205.65,205.64,62.30852124]
[1756611707664,1e-08,205.65,205.64,62.30852124]
[1756611723102,0.06,205.7,205.68,39.59559401]
[1756611723285,0.06,205.7,205.69,54.6670481]
[1756611723485,0.06,205.7,205.69,55.3670481]
[1756611723791,1e-08,205.7,205.69,57.3148941]
[1756611725303,1e-08,205.7,205.69,62.17657916]
[1756611725505,0.06,205.77,205.76,17.0470481]
[1756611725700,0.06,205.77,205.76,54.7070481]
[1756611726206,0.06,205.77,205.76,56.6545151]
[1756611726402,0.06,205.77,205.76,61.5145462]
[1756611728004,0.06,205.77,205.76,58.76309211]
[1756611728203,0.06,205.77,205.76,62.2145462]
[1756611729006,0.06,205.77,205.76,58.04309211]
[1756611729391,0.06,205.77,205.76,61.4945462]
[1756611729613,0.06,205.77,205.76,58.04309211]
[1756611729794,0.06,205.77,205.76,61.4945462]
[1756611729990,0.06,205.77,205.76,62.1945462]
[1756611730914,0.06,205.77,205.76,58.74309211]
[1756611731209,0.06,205.77,205.76,62.1945462]
[1756611733812,0.06,205.77,205.76,23.8545462]
[1756611734015,0.06,205.77,205.76,61.4745462]
[1756611736514,0.06,205.77,205.76,62.1745462]
[1756611737014,0.06,205.77,205.76,13.59559401]
[1756611737218,0.51,205.77,205.76,51.19559401]
[1756611737414,0.45,205.78,205.77,13.59559401]
[1756611738812,4.85882801,205.82,205.77,13.59559401]
[1756611739012,3.45145409,205.79,205.78,51.19559401]
[1756611739202,3.90145409,205.79,205.78,51.19559401]
[1756611739405,0.45,205.79,205.78,51.19559401]
[1756611740921,3.51145409,205.8,205.78,51.19559401]
[1756611741117,0.06,205.8,205.79,13.59559401]
[1756611742122,0.06,205.8,205.79,14.29559401]
[1756611742323,0.06,205.8,205.79,16.50204772]
[1756611742911,0.06,205.8,205.79,21.36137033]
[1756611743321,0.06,205.8,205.79,22.60169856]
[1756611743821,0.06,205.8,205.79,19.15491662]
[1756611744026,0.06,205.8,205.79,26.04848056]
[1756611744713,0.06,205.8,205.79,22.60169862]
[1756611744918,0.06,205.8,205.79,26.04848056]
[1756611745620,0.06,205.8,205.79,22.60169862]
[1756611745920,0.06,205.8,205.79,26.04848056]
[1756611747322,0.06,205.8,205.79,22.60169862]
[1756611747522,0.06,205.8,205.79,26.04848056]
[1756611748624,0.06,205.8,205.79,22.60169862]
[1756611748822,0.06,205.8,205.79,51.15559401]
[1756611749626,0.06,205.8,205.79,13.59559401]
[1756611749827,0.06,205.8,205.79,51.15559401]
[1756611751230,0.06,205.8,205.79,13.59559401]
[1756611751416,0.06,205.8,205.79,51.15559401]
[1756611754337,0.06,205.8,205.79,56.01491662]
[1756611756231,0.06,205.8,205.79,56.04491662]
[1756611756428,0.06,205.8,205.79,51.18559401]
[1756611757321,0.06,205.8,205.79,60.21169856]
[1756611761325,0.06,205.8,205.79,63.83751056]
[1756611762425,0.06,205.82,205.8,13.59559401]
[1756611762633,0.06,205.82,205.81,80.60237595]
[1756611762834,0.06,205.82,205.81,81.32237595]
[1756611763030,0.06,205.82,205.81,83.26917995]
[1756611764139,0.06,205.82,205.81,88.12803034]
[1756611767243,0.06,205.82,205.81,50.56803034]
[1756611767449,0.06,205.82,205.81,88.12803034]
[1756611770249,0.06,205.82,205.81,50.56803034]
[1756611770429,0.06,205.82,205.81,88.12803034]
[1756611771952,0.06,205.82,205.81,50.56803034]
[1756611772453,0.06,205.82,205.81,88.12803034]
[1756611778547,0.06,205.82,205.81,50.56803034]
[1756611778844,0.06,205.82,205.81,88.12803034]
[1756611779462,0.06,205.82,205.81,86.88619991]
[1756611779638,0.06,205.82,205.81,49.32619991]
[1756611779838,0.06,205.82,205.81,86.88619991]
[1756611780861,1.95398093,205.89,205.82,13.59559401]
[1756611781064,1.95398093,205.89,205.84,15.80054552]
[1756611781243,1.95398093,205.89,205.86,13.59559401]
[1756611781439,26.0,205.93,205.88,13.59559401]
[1756611781760,2.20495151,205.9,205.89,51.15559401]
[1756611782857,2.20495151,205.9,205.84,14.600316]
[1756611783061,2.20495151,205.87,205.86,13.59559401]
[1756611783264,2.20495151,205.87,205.86,51.15559401]
[1756611784555,2.20495151,205.87,205.8,4.88888579]
[1756611784744,2.20495151,205.83,205.81,51.15559401]
[1756611785355,3.44736215,205.83,205.81,51.15559401]
[1756611786148,4.85787664,205.86,205.81,51.15559401]
[1756611786447,3.44736215,205.83,205.81,51.15559401]
[1756611786651,4.85787664,205.86,205.8,0.03]
[1756611786652,3.44736215,205.82,205.8,0.03]
[1756611786855,3.44736215,205.81,205.8,0.03]
[1756611787756,8.30621254,205.81,205.8,0.03]
[1756611790557,11.75357469,205.81,205.8,0.03]
[1756611791370,8.30621254,205.81,205.8,0.03]
[1756611791751,11.75357469,205.81,205.8,0.03]
[1756611793974,11.75357469,205.81,205.79,0.03]
[1756611794170,3.44736215,205.8,205.79,0.03]
[1756611794762,31.39568315,205.8,205.79,0.03]
[1756611795647,36.25476964,205.8,205.79,0.03]
[1756611797772,73.81476964,205.8,205.79,0.03]
[1756611802772,47.81476964,205.8,205.79,0.03]
[1756611804781,29.44736215,205.78,205.77,0.03]
[1756611805380,3.44736215,205.78,205.77,0.03]
[1756611806469,34.3069209,205.78,205.77,0.03]
[1756611807578,30.85955875,205.78,205.77,0.03]
[1756611807782,34.3069209,205.78,205.77,0.03]
[1756611808487,29.44736215,205.78,205.77,0.74]
[1756611809367,28.20782839,205.78,205.77,0.74]
[1756611810576,2.20782839,205.78,205.77,0.74]
[1756611811367,3.44975647,205.78,205.77,0.74]
[1756611814197,4.85910758,205.8,205.77,0.74]
[1756611814690,3.44975647,205.78,205.77,0.74]
[1756611816068,4.91910758,205.8,205.77,0.74]
[1756611816270,3.44975647,205.78,205.77,0.74]
[1756611816470,0.06,205.8,205.77,0.74]
[1756611816796,3.44975647,205.78,205.77,0.03]
[1756611817198,3.44975647,205.78,205.77,0.69]
[1756611824396,3.44975647,205.78,205.77,0.03]
[1756611824598,8.30931522,205.78,205.77,0.03]
[1756611825805,4.85955875,205.78,205.77,0.03]
[1756611825992,8.30931522,205.78,205.77,0.03]
[1756611826507,10.25763622,205.78,205.77,0.03]
[1756611826994,8.30931522,205.78,205.77,0.03]
[1756611827194,10.25763522,205.78,205.77,0.03]
[1756611829906,8.30931522,205.78,205.77,0.03]
[1756611831415,36.25763522,205.78,205.77,0.03]
[1756611833299,35.01665286,205.78,205.77,0.03]
[1756611841214,35.01665286,205.78,205.77,0.69]
[1756611841215,6.80787875,205.78,205.77,0.69]
[1756611841528,70.62833286,205.78,205.77,0.69]
[1756611842203,70.62833286,205.78,205.77,0.03]
[1756611842612,72.57684386,205.78,205.77,0.03]
[1756611844131,46.57684386,205.78,205.76,0.03]
[1756611844302,46.57684386,205.78,205.75,0.03]
[1756611844303,28.20877411,205.76,205.75,0.03]
[1756611844499,65.76877411,205.76,205.75,0.03]
[1756611844703,65.76877411,205.76,205.75,0.71]
[1756611844915,1.948605,205.77,205.75,0.71]
[1756611845105,2.20877411,205.78,205.76,13.59559401]
[1756611845313,2.20877411,205.78,205.77,0.68]
[1756611846022,0.06,205.79,205.78,13.59559401]
[1756611846524,0.06,205.79,205.78,14.27559401]
[1756611848832,0.06,205.79,205.78,19.13515276]
[1756611859735,0.06,205.79,205.78,22.64345276]
[1756611863243,0.06,205.79,205.78,26.09175307]
[1756611863741,0.06,205.79,205.78,52.09175307]
[1756611867145,3.50830031,205.79,205.78,19.13515276]
[1756611867319,0.06,205.79,205.78,19.13515276]
[1756611867639,0.06,205.79,205.78,23.28935003]
[1756611869348,0.06,205.79,205.78,21.08261976]
[1756611870444,0.06,205.79,205.78,23.28935003]
[1756611871848,0.06,205.79,205.78,49.28935003]
[1756611872056,0.06,205.79,205.78,47.08261976]
[1756611872248,0.06,205.79,205.78,86.84935003]
[1756611875254,0.06,205.79,205.78,49.28935003]
[1756611875545,0.06,205.79,205.78,86.82935003]
[1756611882455,0.06,205.79,205.78,49.28935003]
[1756611882646,0.06,205.79,205.78,86.82935003]
[1756611891071,0.06,205.79,205.78,49.28935003]
[1756611891237,0.06,205.79,205.78,86.82935003]
[1756611892762,0.06,205.79,205.78,49.28935003]
[1756611892950,0.06,205.79,205.78,86.82935003]
[1756611893573,0.06,205.79,205.78,47.08261976]
[1756611893747,2.26673027,205.79,205.76,0.03]
[1756611893952,2.20673027,205.77,205.76,0.03]
[1756611894293,2.20673027,205.77,205.76,46.58559401]
[1756611899146,4.91935925,205.79,205.77,13.59559401]
[1756611899352,4.91935925,205.79,205.78,51.13559401]
[1756611899551,7.12608952,205.79,205.78,51.13559401]
[1756611900173,2.26673027,205.79,205.78,51.13559401]
[1756611900967,7.12605288,205.79,205.78,13.59559401]
[1756611901172,7.12605288,205.79,205.78,51.13559401]
[1756611902468,2.26673027,205.79,205.78,51.13559401]
[1756611903559,0.06,205.79,205.78,56.68515276]
[1756611903866,0.06,205.79,205.78,58.89188303]
[1756611904775,0.06,205.79,205.78,60.83906503]
[1756611906470,0.06,205.79,205.78,58.63233476]
[1756611906864,0.06,205.79,205.78,19.14515276]
[1756611907067,0.06,205.79,205.78,56.68515276]
[1756611907261,0.06,205.79,205.78,58.63233576]
[1756611907784,0.06,205.79,205.78,19.14515276]
[1756611907976,0.06,205.79,205.78,56.68515276]
[1756611908186,0.06,205.79,205.78,13.59559401]
[1756611908482,0.06,205.79,205.78,51.82559401]
[1756611910781,0.06,205.79,205.78,56.68515276]
[1756611912089,0.06,205.79,205.78,14.28559401]
[1756611912292,3.50776887,205.79,205.76,0.03]
[1756611912488,0.06,205.79,205.76,13.62559401]
[1756611912669,3.44776887,205.77,205.76,14.31559401]
[1756611912871,3.44776887,205.77,205.76,51.99559401]
[1756611913395,3.44776887,205.77,205.76,0.03]
[1756611913586,3.44776887,205.77,205.76,13.62559401]
[1756611913897,3.44776887,205.77,205.76,51.32559401]
[1756611916408,0.06,205.79,205.77,13.59559401]
[1756611916702,0.06,205.79,205.78,37.7]
[1756611917207,0.06,205.79,205.76,0.03]
[1756611917496,0.06,205.79,205.77,37.68]
[1756611917691,3.44776887,205.78,205.77,37.68]
[1756611918397,3.44776887,205.78,205.76,0.03]
[1756611918703,8.30732762,205.78,205.77,37.68]
[1756611919600,8.30732762,205.78,205.76,0.03]
[1756611919801,3.44776887,205.77,205.76,0.03]
[1756611919976,3.44776887,205.77,205.76,37.69]
[1756611920500,3.44776887,205.77,205.76,0.03]
[1756611920807,3.44776887,205.77,205.76,37.71]
[1756611921312,8.30756378,205.77,205.76,0.03]
[1756611929318,2.20850525,205.77,205.76,0.03]
[1756611930720,2.20850525,205.77,205.76,0.72]
[1756611930898,2.20850525,205.77,205.76,0.03]
[1756611932416,7.06830016,205.77,205.76,0.03]
[1756611935934,4.85979491,205.77,205.76,0.03]
[1756611936233,7.12830016,205.77,205.76,0.03]
[1756611937327,7.12830016,205.77,205.76,0.74]
[1756611937630,7.12830016,205.77,205.76,0.03]
[1756611938203,7.12830016,205.77,205.76,0.74]
[1756611938530,7.12830016,205.77,205.76,0.03]
[1756611940233,7.12830016,205.77,205.76,0.74]
[1756611940826,7.12830016,205.77,205.76,0.03]
[1756611941405,0.06,205.77,205.76,0.03]
[1756611941736,2.26850525,205.77,205.76,0.03]
[1756611942926,7.12830016,205.77,205.76,0.03]
[1756611944232,2.26850525,205.77,205.76,0.03]
[1756611944932,4.91979491,205.77,205.76,0.03]
[1756611945233,2.26850525,205.77,205.76,14.33559401]
[1756611946710,2.26850525,205.77,205.76,51.89559401]
[1756611947654,0.06,205.77,205.76,51.89559401]
[1756611947934,2.26850525,205.77,205.76,51.89559401]
[1756611948140,0.06,205.77,205.76,51.89559401]
[1756611948321,2.26850525,205.77,205.76,51.89559401]
[1756611952549,2.26850525,205.77,205.76,14.33559401]
[1756611952734,2.26850525,205.77,205.76,51.89559401]
[1756611957443,4.91935462,205.79,205.77,13.59559401]
[1756611957444,0.06,205.79,205.77,13.59559401]
[1756611957638,0.06,205.79,205.78,0.71]
[1756611957829,2.26850525,205.79,205.78,38.27]
[1756611958343,2.26850525,205.79,205.78,43.188648]
[1756611959037,2.26850525,205.79,205.78,5.628648]
[1756611959348,2.26850525,205.79,205.78,43.188648]
[1756611959836,2.26850525,205.79,205.78,5.628648]
[1756611960037,2.26850525,205.79,205.78,43.188648]
[1756611960250,2.26850525,205.79,205.78,5.628648]
[1756611960437,2.26850525,205.79,205.78,43.188648]
[1756611960747,2.26850525,205.79,205.78,5.628648]
[1756611960934,7.12782786,205.79,205.78,4.918648]
[1756611961341,7.12782786,205.79,205.76,38.3]
[1756611961536,2.20850525,205.77,205.76,51.89559401]
[1756611961741,4.91932261,205.79,205.76,51.89559401]
[1756611961931,2.20850525,205.77,205.76,51.18559401]
[1756611962457,2.20850525,205.77,205.76,51.87559401]
[1756611963337,3.4493467,205.77,205.76,56.73562511]
[1756611963535,3.4493467,205.77,205.76,51.87559401]
[1756611964552,3.4493467,205.78,205.76,56.73561093]
[1756611964731,3.4493467,205.78,205.77,0.69]
[1756611965565,0.06,205.79,205.78,13.59559401]
[1756611965867,3.5093467,205.79,205.78,13.59559401]
[1756611966040,3.5093467,205.79,205.78,14.28559401]
[1756611970466,0.06,205.79,205.78,14.28559401]
[1756611970650,0.06,205.79,205.78,19.14515276]
[1756611970851,0.06,205.79,205.78,21.09261976]
[1756611976892,0.06,205.79,205.78,16.23306101]
[1756611977080,3.5093467,205.79,205.77,13.59559401]
[1756611977254,0.06,205.79,205.78,13.59559401]
[1756611977574,0.12,205.79,205.76,13.62559401]
[1756611977768,0.06,205.78,205.76,51.16559401]
[1756611977955,0.06,205.79,205.76,51.16559401]
[1756611978569,3.4493467,205.77,205.76,51.16559401]
[1756611979348,8.30914161,205.77,205.76,0.03]
[1756611985377,8.36914161,205.77,205.76,0.03]
[1756611986168,10.31755661,205.77,205.76,0.03]
[1756611986466,8.36914161,205.77,205.76,0.03]
[1756611986972,8.36914161,205.77,205.75,0.03]
[1756611987176,8.3093778,205.76,205.75,0.03]
[1756611990574,8.3693778,205.76,205.75,0.03]
[1756611990769,8.3093778,205.76,205.75,0.03]
[1756611994889,8.3693778,205.76,205.75,0.03]
[1756611995262,10.3179828,205.76,205.75,0.03]
[1756611996168,10.3179828,205.76,205.74,0.03]
[1756611996381,3.5093467,205.75,205.73,0.03]
[1756611996585,3.4493467,205.74,205.73,0.03]
[1756611996781,6.9586934,205.74,205.72,0.03]
[1756611996991,3.5093467,205.73,205.72,0.03]
[1756611997176,3.4493467,205.73,205.72,0.03]
[1756611997588,32.9586934,205.73,205.65,0.71]
[1756611997887,8.31174094,205.66,205.65,0.71]
[1756611998975,3.4493467,205.66,205.65,0.71]
[1756611999784,3.4493467,205.66,205.64,0.03]
[1756611999978,3.4493467,205.65,205.64,0.74]
[1756612000890,8.31197738,205.65,205.64,0.74]
[1756612001785,8.31197738,205.65,205.64,0.03]
[1756612004593,3.4493467,205.65,205.64,0.03]
[1756612005790,8.31197738,205.65,205.64,0.03]
[1756612007190,4.86240435,205.66,205.64,0.03]
[1756612007382,3.99631958,205.69,205.64,0.74]
[1756612007383,63.56,205.68,205.64,0.74]
[1756612007577,3.4493467,205.65,205.64,0.74]
[1756612009685,8.31197738,205.65,205.64,0.74]
[1756612010081,8.31197738,205.65,205.64,0.03]
[1756612014599,8.31197738,205.65,205.64,0.74]
[1756612014600,3.4493467,205.65,205.64,0.74]
[1756612015276,3.4493467,205.65,205.64,0.03]
[1756612015500,8.31197738,205.65,205.64,0.03]
[1756612020180,4.86263068,205.65,205.64,0.03]
[1756612020381,8.31197738,205.65,205.64,0.03]
[1756612025804,34.31197738,205.65,205.64,0.03]
[1756612027514,71.87197738,205.65,205.64,0.03]
[1756612029398,26.0,205.65,205.64,0.71]
[1756612029612,29.4493467,205.65,205.64,0.71]
[1756612030112,3.4493467,205.66,205.64,0.71]
[1756612030498,3.4493467,205.65,205.64,0.71]
[1756612033102,4.86240076,205.66,205.64,0.71]
[1756612033294,3.4493467,205.65,205.64,0.03]
[1756612033505,3.4493467,205.65,205.64,0.71]
[1756612034221,3.4493467,205.65,205.64,0.03]
[1756612034718,3.4493467,205.65,205.64,0.71]
[1756612035106,4.86240076,205.66,205.64,0.71]
[1756612035308,4.86240076,205.66,205.65,0.68]
[1756612035498,8.31174746,205.66,205.65,0.68]
[1756612035700,3.4493467,205.66,205.65,0.68]
[1756612036312,4.86239424,205.66,205.65,0.68]
[1756612036622,8.31174094,205.66,205.65,0.68]
[1756612036820,4.86239424,205.66,205.65,0.68]
[1756612037203,8.31174094,205.66,205.65,0.68]
[1756612037423,4.86239424,205.66,205.65,0.68]
[1756612037610,8.31174094,205.66,205.65,0.68]
[1756612038121,4.86239424,205.66,205.65,0.68]
[1756612038422,8.31174094,205.66,205.65,0.68]
[1756612038722,4.86239424,205.66,205.65,0.68]
[1756612038922,8.31174094,205.66,205.65,0.68]
[1756612039224,4.86239424,205.66,205.65,0.68]
[1756612039427,8.31174094,205.66,205.65,0.68]
[1756612039823,4.86239424,205.66,205.65,0.68]
[1756612040128,8.31174094,205.66,205.65,0.71]
[1756612040428,4.86239424,205.66,205.65,0.71]
[1756612040611,8.31174094,205.66,205.65,0.71]
[1756612040798,3.4493467,205.66,205.65,0.71]
[1756612041627,30.86221941,205.67,205.65,0.71]
[1756612041932,3.4493467,205.66,205.65,0.71]
[1756612043226,30.86221941,205.67,205.65,0.71]
[1756612043418,3.4493467,205.66,205.65,0.71]
[1756612043620,3.4493467,205.66,205.65,0.03]
[1756612044202,3.4493467,205.66,205.65,0.71]
[1756612044526,0.06,205.71,205.65,0.71]
[1756612044723,3.4493467,205.69,205.65,0.71]
[1756612045225,3.5093467,205.71,205.66,17.04494071]
[1756612045432,0.06,205.71,205.68,13.59559401]
[1756612045606,0.06,205.71,205.69,0.68]
[1756612049038,0.06,205.71,205.7,13.59559401]
[1756612049413,0.06,205.71,205.7,14.27559401]
[1756612051314,3.5093467,205.71,205.66,0.68]
[1756612051636,3.4493467,205.67,205.65,13.62559401]
[1756612052140,3.4493467,205.67,205.66,0.67]
[1756612052512,3.4493467,205.68,205.66,0.67]
[1756612053133,3.5093467,205.71,205.67,13.59559401]
[1756612053335,3.5093467,205.71,205.69,13.59559401]
[1756612053840,3.5093467,205.71,205.7,0.67]
[1756612054241,0.06,205.71,205.7,0.67]
[1756612054533,0.06,205.71,205.7,14.26559401]
[1756612055443,0.06,205.71,205.7,19.12704272]
[1756612056920,0.06,205.71,205.7,14.26559401]
[1756612058031,3.5093467,205.71,205.7,14.26559401]
[1756612058420,3.5093467,205.71,205.7,0.67]
[1756612058737,3.5093467,205.71,205.66,13.59559401]
[1756612058937,3.4493467,205.7,205.68,0.67]
[1756612059138,3.4493467,205.7,205.69,0.67]
[1756612068158,3.4493467,205.7,205.65,0.03]
[1756612068355,3.4493467,205.66,205.65,0.7]
[1756612069140,3.4493467,205.66,205.65,0.03]
[1756612072962,4.86219384,205.67,205.65,0.03]
[1756612073260,3.4493467,205.66,205.65,0.03]
[1756612073649,3.4493467,205.66,205.65,0.7]
[1756612073849,3.4493467,205.66,205.65,0.03]
[1756612075558,8.31174094,205.66,205.65,0.03]
[1756612077162,4.92168506,205.69,205.65,0.03]
[1756612077461,3.4493467,205.66,205.65,0.7]
[1756612077639,3.4493467,205.66,205.65,0.03]
[1756612078558,3.4493467,205.66,205.65,0.7]
[1756612087379,3.4493467,205.66,205.65,0.03]
[1756612089482,3.4493467,205.66,205.65,0.7]
[1756612091274,2.21050016,205.66,205.65,0.7]
[1756612091474,13.70344935,205.7,205.65,0.7]
[1756612091669,2.21050016,205.66,205.65,0.7]
[1756612093586,4.86192692,205.68,205.65,0.7]
[1756612093880,2.21050016,205.7,205.66,13.59559401]
[1756612094080,2.27050016,205.71,205.67,0.67]
[1756612095077,2.27050016,205.71,205.67,5.53211116]
[1756612095278,0.06,205.71,205.69,15.80609417]
[1756612095485,0.06,205.71,205.7,16.47609417]
[1756612095777,0.06,205.71,205.7,14.26559401]
[1756612097476,0.06,205.71,205.7,19.12704272]
[1756612103582,0.06,205.71,205.7,14.26559401]
[1756612105269,0.06,205.71,205.7,19.12704272]
[1756612106389,0.06,205.71,205.7,14.26559401]
[1756612107068,0.06,205.71,205.7,14.29559401]
[1756612109483,0.06,205.71,205.7,13.62559401]
[1756612109688,0.06,205.71,205.7,14.29559401]
[1756612110177,0.06,205.71,205.7,22.60806215]
[1756612110487,0.06,205.74,205.73,17.04661344]
[1756612110881,0.06,205.74,205.73,17.71661344]
[1756612111082,0.06,205.74,205.73,21.22763244]
[1756612111591,0.06,205.74,205.73,26.08837224]